bitfinex/quotes_SOLUSD_20240821
["timestamp","ask_amount","ask_price","bid_price","bid_amount"]
[1724209930636,13.18,143.23,143.16,22.5448]
[1724209930840,13.18,143.21,143.16,22.5448]
[1724209932339,13.18,143.23,143.16,22.5448]
[1724209934631,13.18,143.21,143.16,22.5448]
[1724209941354,13.18,143.19,143.16,22.5448]
[1724209942131,13.18,143.19,143.16,16.4563]
[1724209949073,20.0,143.18,143.13,6.5308]
[1724209949938,13.18,143.17,143.13,6.5308]
[1724209952135,13.18,143.15,143.12,16.1052]
[1724209953339,13.18,143.13,143.1,6.4291]
[1724209953942,41.02,143.16,143.1,6.4291]
[1724209953947,13.18,143.14,143.1,6.4291]
[1724209961246,41.02,143.18,143.1,6.4291]
[1724209961442,13.18,143.15,143.1,6.4291]
[1724209964854,13.18,143.13,143.1,6.4291]
[1724209965062,13.18,143.11,143.09,16.4997]
[1724209971583,13.18,143.13,143.09,16.4997]
[1724209975388,389.9,143.17,143.1,6.3863]
[1724209975571,13.18,143.16,143.1,6.3863]
[1724209979371,41.02,143.18,143.1,6.3863]
[1724209979372,13.18,143.14,143.1,6.3863]
[1724209980595,13.18,143.12,143.09,16.4997]
[1724209984887,33.18,143.14,143.09,16.4997]
[1724209985576,20.0,143.16,143.09,16.4997]
[1724209985780,13.18,143.14,143.09,16.4997]
[1724209993624,33.18,143.14,143.09,16.4997]
[1724209995202,13.18,143.14,143.09,16.4997]
[1724209997012,20.0,143.15,143.1,6.6345]
[1724209997182,33.18,143.15,143.1,6.6345]
[1724209999500,7.31737671,143.18,143.11,1.39751867]
[1724209999714,13.18,143.18,143.11,1.39751867]
[1724210000230,20.0,143.22,143.12,15.0363]
[1724210000395,13.18,143.2,143.12,15.0363]
[1724210000795,13.18,143.2,143.13,1.39711511]
[1724210000997,13.18,143.2,143.14,6.286]
[1724210002399,20.0,143.24,143.14,6.286]
[1724210002702,13.18,143.22,143.15,15.0363]
[1724210005334,20.0,143.24,143.15,15.0363]
[1724210005503,13.18,143.21,143.15,15.0363]
[1724210013210,13.08770087,143.21,143.15,15.0363]
[1724210014933,13.18,143.19,143.15,15.0363]
[1724210019106,13.18,143.21,143.15,15.0363]
[1724210020143,66.02,143.23,143.15,16.43326187]
[1724210020437,13.18,143.22,143.15,16.43326187]
[1724210020745,13.18,143.22,143.15,15.0363]
[1724210020746,33.18,143.22,143.15,15.0363]
[1724210021942,13.18,143.22,143.15,15.0363]
[1724210024025,45.0,143.23,143.15,15.0363]
[1724210024219,58.18,143.24,143.16,1.39579018]
[1724210024618,20.0,143.23,143.16,1.39579018]
[1724210025021,20.0,143.23,143.17,6.2323]
[1724210026623,13.18,143.24,143.17,6.2323]
[1724210026940,20.0,143.23,143.17,6.2323]
[1724210028440,13.18,143.27,143.19,6.2507]
[1724210028625,13.18,143.27,143.2,16.5051]
[1724210033042,41.02,143.3,143.2,16.5051]
[1724210033353,13.18,143.28,143.2,16.5051]
[1724210041755,13.18,143.26,143.2,16.5051]
[1724210045272,13.18,143.24,143.2,16.5051]
[1724210049339,13.18,143.26,143.2,16.5051]
[1724210053744,13.18,143.24,143.2,16.5051]
[1724210060646,13.18,143.22,143.17,21.625]
[1724210068500,434.9,143.27,143.17,21.625]
[1724210068501,475.92,143.27,143.17,21.625]
[1724210068783,13.18,143.25,143.17,21.625]
[1724210080188,41.01,143.29,143.18,22.0209]
[1724210080391,13.18,143.27,143.19,15.4396]
[1724210081108,13.18,143.27,143.2,6.6644]
[1724210082005,41.01,143.29,143.2,6.6644]
[1724210082200,65.0,143.28,143.2,6.6644]
[1724210082690,13.18,143.27,143.2,6.6644]
[1724210083193,65.0,143.28,143.2,6.6644]
[1724210083394,13.18,143.27,143.2,6.6644]
[1724210084091,13.18,143.27,143.21,15.7443]
[1724210085490,65.0,143.28,143.21,15.7443]
[1724210085818,78.18,143.28,143.21,15.7443]
[1724210087004,20.0,143.28,143.22,6.1699]
[1724210088216,33.18,143.29,143.22,6.1699]
[1724210090809,54.19,143.29,143.22,6.1699]
[1724210091016,13.18,143.27,143.22,6.1699]
[1724210098322,41.01,143.29,143.22,6.1699]
[1724210098504,13.18,143.28,143.22,6.1699]
[1724210099397,41.01,143.29,143.22,6.1699]
[1724210099594,13.18,143.28,143.22,6.1699]
[1724210101002,13.18,143.26,143.22,6.1699]
[1724210103624,20.0,143.29,143.22,6.1699]
[1724210103807,13.18,143.28,143.22,6.1699]
[1724210112424,13.18,143.26,143.22,6.1699]
[1724210114810,13.18,143.24,143.21,15.7443]
[1724210118532,13.18,143.26,143.21,15.7443]
[1724210127042,20.0,143.29,143.22,6.1126]
[1724210127346,33.18,143.29,143.22,6.1126]
[1724210127546,13.18,143.3,143.24,15.0952]
[1724210131618,13.18,143.28,143.24,15.0952]
[1724210133435,13.18,143.3,143.24,15.0952]
[1724210137851,13.18,143.28,143.24,15.0952]
[1724210139444,13.18,143.26,143.24,15.0952]
[1724210139644,93.73,143.29,143.24,15.0952]
[1724210139945,13.18,143.28,143.24,15.0952]
[1724210145778,13.18,143.26,143.24,15.0952]
[1724210146103,13.18,143.26,143.22,6.1126]
[1724210146284,13.18,143.24,143.22,6.1126]
[1724210146766,41.01,143.27,143.22,6.1126]
[1724210147079,13.18,143.28,143.22,6.1126]
[1724210148285,21.01,143.3,143.22,6.1126]
[1724210148591,13.18,143.28,143.22,6.1126]
[1724210151288,13.18,143.26,143.22,6.1126]
[1724210154387,13.18,143.28,143.22,6.1126]
[1724210155865,13.18,143.26,143.22,6.1126]
[1724210160468,13.18,143.24,143.22,6.1126]
[1724210166495,41.01,143.23,143.17,15.2015]
[1724210166700,13.18,143.19,143.17,15.2015]
[1724210169672,13.18,143.19,143.15,6.5098]
[1724210169971,13.18,143.17,143.15,6.5098]
[1724210170387,13.18,143.17,143.14,15.0658]
[1724210170700,21.01,143.18,143.14,15.0658]
[1724210170701,13.18,143.15,143.14,15.0658]
[1724210171197,20.0,143.19,143.14,15.0658]
[1724210171198,13.18,143.17,143.14,15.0658]
[1724210172188,13.18,143.19,143.14,15.0658]
[1724210173101,13.18,143.17,143.14,15.0658]
[1724210178406,34.19,143.17,143.14,15.0658]
[1724210181302,13.18,143.17,143.14,15.0658]
[1724210185702,41.01,143.19,143.14,15.0658]
[1724210185901,13.18,143.16,143.14,15.0658]
[1724210189016,13.18,143.16,143.11,21.5749]
[1724210189219,13.18,143.14,143.11,21.5749]
[1724210191927,13.18,143.16,143.11,21.5749]
[1724210192331,13.18,143.18,143.11,21.5749]
[1724210204340,41.01,143.19,143.11,21.5749]
[1724210204341,13.18,143.16,143.11,21.5749]
[1724210206420,13.18,143.14,143.11,21.5749]
[1724210209024,13.18,143.12,143.04,22.0362]
[1724210210250,13.18,143.1,143.04,22.0362]
[1724210211523,41.01,143.13,143.04,22.0362]
[1724210211717,13.18,143.1,143.04,22.0362]
[1724210213544,13.18,143.12,143.04,22.0362]
[1724210215646,13.18,143.12,143.04,35.2162]
[1724210217326,430.91,143.17,143.06,35.5811]
[1724210217539,13.18,143.15,143.06,35.5811]
[1724210217722,13.18,143.15,143.07,15.9915]
[1724210218543,403.08,143.17,143.1,15.9915]
[1724210218753,13.18,143.17,143.1,15.9915]
[1724210225639,13.18,143.15,143.1,15.9915]
[1724210236982,13.18,143.17,143.11,0.7346968]
[1724210237162,13.18,143.17,143.1,15.9915]
[1724210237674,13.18,143.18,143.1,15.9915]
[1724210244883,13.18,143.16,143.1,15.9915]
[1724210249270,13.18,143.19,143.12,15.5788]
[1724210251595,7.31598818,143.21,143.13,8.019904]
[1724210251804,13.18,143.22,143.14,16.3029]
[1724210251979,397.21340942,143.24,143.15,8.01964031]
[1724210252178,13.18,143.23,143.16,16.3029]
[1724210252493,13.18,143.25,143.16,29.4829]
[1724210252670,13.18,143.25,143.17,45.0]
[1724210253586,13.18,143.24,143.17,45.0]
[1724210255299,13.18,143.24,143.16,29.4829]
[1724210255300,13.18,143.24,143.16,16.3029]
[1724210256300,41.01,143.27,143.16,16.3029]
[1724210256471,13.18,143.25,143.17,21.97449166]
[1724210256667,13.18,143.25,143.17,21.563]
[1724210257607,13.18,143.25,143.18,1.39652705]
[1724210257799,13.18,143.25,143.17,21.563]
[1724210266410,13.18,143.25,143.18,16.412]
[1724210269006,13.18,143.21,143.18,16.412]
[1724210269395,13.18,143.19,143.18,16.412]
[1724210270914,13.18,143.21,143.18,16.412]
[1724210280512,13.18,143.23,143.18,16.412]
[1724210281323,41.01,143.25,143.18,16.412]
[1724210281533,13.18,143.23,143.18,16.412]
[1724210291012,13.18,143.21,143.18,16.412]
[1724210292526,21.01,143.2,143.18,16.412]
[1724210292731,13.18,143.21,143.18,16.412]
[1724210303147,13.18,143.19,143.17,6.5095]
[1724210303454,13.18,143.19,143.14,16.5444]
[1724210303946,13.18,143.15,143.11,16.5444]
[1724210304144,21.01,143.18,143.11,16.5444]
[1724210304145,13.18,143.13,143.11,16.5444]
[1724210306145,13.18,143.15,143.11,16.5444]
[1724210309122,45.0,143.18,143.11,16.5444]
[1724210309446,13.18,143.16,143.11,16.5444]
[1724210313345,13.18,143.14,143.11,16.5444]
[1724210327451,41.01,143.17,143.11,16.5444]
[1724210327753,13.18,143.14,143.11,16.5444]
[1724210330177,45.0,143.16,143.11,16.5444]
[1724210330377,13.18,143.14,143.11,16.5444]
[1724210342083,7.31696346,143.18,143.11,16.5444]
[1724210342294,13.18,143.16,143.11,16.5444]
[1724210352986,13.18,143.14,143.11,16.5444]
[1724210357914,13.18,143.12,143.1,6.6196]
[1724210361375,13.18,143.14,143.1,6.6196]
[1724210368604,13.18,143.12,143.07,16.3431]
[1724210383139,13.18,143.1,143.07,16.3431]
[1724210384145,13.18,143.1,143.03,21.61104705]
[1724210384146,13.18,143.08,143.03,21.61104705]
[1724210384322,13.18,143.08,143.03,15.2659]
[1724210386543,33.18,143.08,143.03,15.2659]
[1724210387042,13.18,143.08,143.03,15.2659]
[1724210387245,13.18,143.06,143.03,15.2659]
[1724210388737,13.18,143.06,143.02,6.1139]
[1724210390218,13.18,143.08,143.02,6.1139]
[1724210393433,33.18,143.08,143.02,6.1139]
[1724210393633,13.18,143.06,143.02,6.1139]
[1724210397930,13.18,143.08,143.02,6.1139]
[1724210401231,13.18,143.09,143.03,15.6862]
[1724210401741,13.18,143.07,143.03,15.6862]
[1724210407447,13.18,143.05,143.03,15.6862]
[1724210410927,13.18,143.05,142.98,21.6424]
[1724210423261,13.18,143.05,142.99,1.39862318]
[1724210425065,13.18,143.05,142.98,21.6424]
[1724210427770,21.03,143.04,142.98,21.6424]
[1724210428062,13.18,143.05,142.98,21.6424]
[1724210429077,13.18,143.03,142.98,21.6424]
[1724210434259,13.18,143.01,142.98,21.6424]
[1724210436169,20.0,143.03,142.98,21.6424]
[1724210436170,13.18,143.03,142.98,21.6424]
[1724210436353,41.03,143.05,142.98,21.6424]
[1724210436553,13.18,143.03,142.98,21.6424]
[1724210437751,21.03,143.02,142.98,21.6424]
[1724210437958,13.18,143.03,142.98,21.6424]
[1724210442862,33.18,143.03,142.98,21.6424]
[1724210444067,13.18,143.03,142.98,21.6424]
[1724210447765,21.03,143.02,142.98,21.6424]
[1724210447961,13.18,143.03,142.98,21.6424]
[1724210459892,33.18,143.03,142.98,21.6424]
[1724210461204,13.18,143.01,142.98,21.6424]
[1724210467421,20.0,143.03,142.98,21.6424]
[1724210467586,13.18,143.02,142.98,21.6424]
[1724210470005,13.18,143.0,142.98,21.6424]
[1724210471013,13.18,143.01,142.98,21.6424]
[1724210480300,20.0,143.03,142.98,21.6424]
[1724210480803,13.18,143.02,142.98,21.6424]
[1724210492329,20.0,143.03,142.98,21.6424]
[1724210492741,33.18,143.03,142.98,21.6424]
[1724210494807,20.0,143.06,142.98,21.6424]
[1724210495137,13.18,143.04,142.98,21.6424]
[1724210496335,13.18,143.06,142.98,6.0417]
[1724210496641,13.18,143.08,143.01,15.2959]
[1724210496847,20.0,143.1,143.01,16.69412637]
[1724210497019,13.18,143.08,143.01,16.69412637]
[1724210497340,13.18,143.08,143.01,15.2959]
[1724210498344,20.0,143.1,143.01,15.2959]
[1724210498526,13.18,143.09,143.01,15.2959]
[1724210498717,20.0,143.1,143.01,15.2959]
[1724210498919,28.94683195,143.12,143.02,6.6389]
[1724210499118,13.18,143.1,143.03,17.11633522]
[1724210499344,13.18,143.1,143.04,6.6389]
[1724210499532,13.18,143.1,143.05,17.11616374]
[1724210499721,13.18,143.12,143.05,17.11616374]
[1724210499920,13.18,143.12,143.05,15.7183]
[1724210503448,20.0,143.14,143.05,15.7183]
[1724210503647,13.18,143.12,143.05,15.7183]
[1724210507046,389.9,143.17,143.08,15.075]
[1724210507047,20.0,143.17,143.08,15.075]
[1724210507250,13.18,143.15,143.08,15.075]
[1724210517366,41.03,143.17,143.08,15.075]
[1724210517544,45.0,143.16,143.08,15.075]
[1724210517755,79.21,143.16,143.08,15.075]
[1724210520281,34.21,143.16,143.08,15.075]
[1724210521069,13.18,143.16,143.08,15.075]
[1724210522570,13.18,143.14,143.08,15.075]
[1724210522749,33.18,143.14,143.08,15.075]
[1724210523174,13.18,143.14,143.08,15.075]
[1724210529054,13.18,143.12,143.08,15.075]
[1724210529381,33.18,143.12,143.08,15.075]
[1724210529881,13.18,143.1,143.08,15.075]
[1724210530093,13.18,143.12,143.08,15.075]
[1724210532276,33.18,143.12,143.08,15.075]
[1724210532462,13.18,143.1,143.08,15.075]
[1724210532870,13.18,143.1,143.07,6.3534]
[1724210537872,54.21,143.12,143.07,6.3534]
[1724210539886,13.18,143.12,143.07,6.3534]
[1724210540879,41.03,143.14,143.07,6.3534]
[1724210541075,13.18,143.12,143.07,6.3534]
[1724210542881,13.18,143.12,143.08,15.9447]
[1724210544968,34.21,143.14,143.08,15.9447]
[1724210546271,54.21,143.14,143.08,15.9447]
[1724210547299,13.18,143.12,143.08,15.9447]
[1724210550299,13.18,143.1,143.08,15.9447]
[1724210550599,13.18,143.1,143.04,15.9782]
[1724210550780,41.03,143.1,143.04,15.9782]
[1724210550982,13.18,143.08,143.04,15.9782]
[1724210552390,13.18,143.1,143.04,15.9782]
[1724210553787,13.18,143.1,143.04,17.37621743]
[1724210554583,13.18,143.1,143.04,15.9782]
[1724210554913,13.18,143.1,143.04,17.37614847]
[1724210555300,13.18,143.1,143.04,15.9782]
[1724210556019,13.18,143.1,143.04,17.37618055]
[1724210558694,13.18,143.1,143.04,15.9782]
[1724210559195,6.9876,143.12,143.04,15.9782]
[1724210559409,20.1676,143.12,143.04,15.9782]
[1724210559989,40.1676,143.12,143.04,15.9782]
[1724210560608,33.18,143.12,143.04,15.9782]
[1724210568017,13.18,143.12,143.04,15.9782]
[1724210568915,13.18,143.12,143.05,6.4876]
[1724210569101,20.49283843,143.14,143.06,16.2899]
[1724210569302,33.18,143.14,143.06,16.2899]
[1724210570214,13.18,143.12,143.06,16.2899]
[1724210571594,33.18,143.12,143.06,16.2899]
[1724210571803,13.18,143.1,143.06,16.2899]
[1724210572894,13.18,143.12,143.06,16.2899]
[1724210580508,13.18,143.12,143.06,17.68772339]
[1724210582215,13.18,143.14,143.07,6.3395]
[1724210582427,13.18,143.14,143.08,1.39760744]
[1724210582805,13.18,143.14,143.07,6.3395]
[1724210583310,13.18,143.14,143.08,1.39760727]
[1724210586219,13.18,143.12,143.07,6.3395]
[1724210588945,13.18,143.12,143.07,7.73721708]
[1724210589844,13.18,143.12,143.07,6.3395]
[1724210590944,13.18,143.14,143.08,1.39765557]
[1724210591518,13.18,143.14,143.07,6.3395]
[1724210591746,13.18,143.14,143.07,7.7371058]
[1724210591926,13.18,143.14,143.08,1.3976021]
[1724210592445,13.18,143.14,143.07,6.3395]
[1724210592925,13.18,143.14,143.07,7.73710649]
[1724210593745,13.18,143.14,143.08,1.39760508]
[1724210596947,13.18,143.14,143.09,15.9359]
[1724210597246,13.18,143.14,143.09,17.33339093]
[1724210598331,13.18,143.14,143.09,15.9359]
[1724210599146,13.18,143.16,143.11,6.087]
[1724210599645,41.51863405,143.18,143.11,6.087]
[1724210599852,34.21,143.18,143.11,6.087]
[1724210600056,13.18,143.16,143.12,15.9359]
[1724210600251,20.0,143.18,143.12,15.9359]
[1724210600425,13.18,143.16,143.12,15.9359]
[1724210619745,13.18,143.14,143.08,15.8145]
[1724210619948,13.18,143.12,143.08,15.8145]
[1724210620948,13.18,143.1,143.08,15.8145]
[1724210621157,13.18,143.1,142.89,40.80793797]
[1724210621158,13.18,143.1,143.04,21.5513]
[1724210625268,33.18,143.1,143.04,21.5513]
[1724210625444,13.18,143.08,143.04,21.5513]
[1724210632769,20.0,143.1,143.04,21.5513]
[1724210632955,13.18,143.08,143.04,21.5513]
[1724210633154,20.0,143.1,143.04,21.5513]
[1724210633358,13.18,143.09,143.04,21.5513]
[1724210642285,13.18,143.07,143.04,15.1071]
[1724210642463,13.18,143.07,143.01,22.5344]
[1724210642659,13.18,143.05,143.01,22.5344]
[1724210648179,13.18,143.07,143.01,22.5344]
[1724210650903,20.0,143.06,143.01,22.5344]
[1724210651618,13.18,143.05,143.01,22.5344]
[1724210656906,13.18,143.06,143.01,22.5344]
[1724210657102,33.18,143.06,143.01,22.5344]
[1724210657908,13.18,143.06,143.01,22.5344]
[1724210661203,20.0,143.08,143.01,22.5344]
[1724210661411,389.9,143.09,143.01,19.8175]
[1724210661588,389.9,143.09,143.03,6.5686]
[1724210661784,389.9,143.09,143.04,1.39795909]
[1724210662114,403.08,143.09,143.03,6.5686]
[1724210665890,13.18,143.09,143.03,6.5686]
[1724210668809,20.0,143.12,143.03,6.5686]
[1724210668990,13.18,143.1,143.04,15.0515]
[1724210669186,13.18,143.12,143.05,1.39792489]
[1724210669418,13.18,143.12,143.06,6.3292]
[1724210669805,13.12,143.12,143.06,6.3292]
[1724210670003,13.18,143.13,143.07,16.0219]
[1724210673623,13.18,143.12,143.07,16.0219]
[1724210685035,33.18,143.12,143.07,16.0219]
[1724210685209,13.18,143.1,143.07,16.0219]
[1724210690526,13.18,143.08,143.06,6.3292]
[1724210690736,13.18,143.08,143.03,15.3418]
[1724210697441,13.18,143.06,143.03,15.3418]
[1724210699256,13.18,143.06,143.0,15.2245]
[1724210699633,13.18,143.04,143.0,15.2245]
[1724210700854,41.03,143.06,142.98,6.4233]
[1724210700855,13.18,143.02,142.98,6.4233]
[1724210701931,13.18,143.04,142.98,6.4233]
[1724210704133,20.0,143.06,142.98,6.4233]
[1724210704361,13.18,143.06,142.99,1.39760434]
[1724210704660,13.18,143.06,142.98,6.4233]
[1724210708359,93.75,143.08,142.98,6.4233]
[1724210708571,13.18,143.06,142.98,6.4233]
[1724210709637,13.18,143.06,142.99,15.8923]
[1724210709838,13.18,143.04,142.99,15.8923]
[1724210711167,13.18,143.06,142.99,15.8923]
[1724210711339,13.18,143.06,143.0,1.39837555]
[1724210712773,13.18,143.06,142.99,15.8923]
[1724210715471,13.18,143.08,143.01,16.6633]
[1724210718771,41.03,143.1,143.01,16.6633]
[1724210719072,13.18,143.08,143.01,16.6633]
[1724210724365,13.18,143.06,143.01,16.6633]
[1724210726687,13.18,143.08,143.02,1.39815429]
[1724210726976,13.18,143.08,143.01,16.6633]
[1724210728860,13.18,143.1,143.03,16.0242]
[1724210737288,13.18,143.12,143.05,16.5842]
[1724210737791,13.18,143.12,143.06,1.39776293]
[1724210738890,13.18,143.12,143.07,16.5842]
[1724210746088,41.03,143.15,143.07,16.5842]
[1724210746290,13.18,143.12,143.07,16.5842]
[1724210746492,21.03,143.16,143.07,16.5842]
[1724210746727,13.18,143.13,143.07,16.5842]
[1724210749094,27.29200021,143.17,143.07,16.5842]
[1724210749389,13.18,143.15,143.07,16.5842]
[1724210751411,13.18,143.15,143.08,6.3541]
[1724210752191,13.18,143.15,143.09,17.01901712]
[1724210753102,13.18,143.15,143.09,15.6216]
[1724210756515,13.18,143.17,143.09,15.6216]
[1724210758721,419.62090457,143.2,143.11,16.2422]
[1724210759014,13.18,143.19,143.12,1.39713383]
[1724210760192,13.18,143.19,143.11,16.2422]
[1724210760417,13.18,143.15,143.07,16.222]
[1724210760618,13.18,143.13,143.07,16.222]
[1724210765795,41.03,143.17,143.07,16.222]
[1724210766023,13.18,143.14,143.07,16.222]
[1724210771809,41.03,143.15,143.07,16.222]
[1724210772013,13.18,143.13,143.07,16.222]
[1724210775631,45.0,143.16,143.07,16.222]
[1724210775839,13.18,143.14,143.07,16.222]
[1724210779214,21.03,143.16,143.07,16.222]
[1724210779530,13.18,143.16,143.09,6.0676]
[1724210779732,13.18,143.16,143.11,16.3841]
[1724210783638,21.03,143.18,143.11,16.3841]
[1724210783841,13.18,143.17,143.11,16.3841]
[1724210788919,13.18,143.15,143.11,16.3841]
[1724210790426,41.03,143.12,143.06,15.921]
[1724210790656,13.18,143.09,143.06,15.921]
[1724210792527,21.03,143.08,143.06,15.921]
[1724210792757,13.18,143.09,143.06,15.921]
[1724210794439,13.18,143.09,143.05,6.5108]
[1724210795426,13.18,143.09,143.02,15.921]
[1724210795427,34.21,143.07,143.02,15.921]
[1724210795656,13.18,143.05,143.02,15.921]
[1724210800354,13.18,143.03,142.96,6.9819826]
[1724210800532,13.18,143.01,142.96,6.9819826]
[1724210804053,34.21,143.01,142.96,6.9819826]
[1724210807851,41.03,143.03,142.96,6.9819826]
[1724210808159,13.18,143.01,142.96,6.9819826]
[1724210808343,20.0,143.02,142.96,6.9819826]
[1724210808539,33.18,143.02,142.96,6.9819826]
[1724210809278,13.18,143.0,142.96,6.9819826]
[1724210816354,33.18,143.02,142.96,6.9819826]
[1724210822781,13.18,143.0,142.96,6.9819826]
[1724210826292,13.18,143.0,142.96,0.4683826]
[1724210831296,41.03,143.02,142.96,1.86728088]
[1724210831297,20.0,143.02,142.96,1.86728088]
[1724210831498,33.18,143.02,142.96,0.4683826]
[1724210841904,33.18,143.02,142.96,6.8215826]
[1724210849221,13.18,143.0,142.96,6.8215826]
[1724210853422,33.18,143.02,142.96,6.8215826]
[1724210856128,20.0,143.02,142.96,6.8215826]
[1724210856323,13.18,143.02,142.96,6.8215826]
[1724210860917,410.93,143.06,142.98,15.7233]
[1724210861118,13.18,143.04,142.99,1.39851792]
[1724210862410,13.18,143.04,142.98,15.7233]
[1724210863104,13.18,143.02,142.98,15.7233]
[1724210866620,15.96442007,143.06,142.98,15.7233]
[1724210866916,13.18,143.05,142.98,15.7233]
[1724210867425,13.18,143.03,142.98,15.7233]
[1724210871230,20.0,143.05,142.98,15.7233]
[1724210871434,13.18,143.03,142.98,15.7233]
[1724210874836,13.18,143.05,142.99,1.39855735]
[1724210875215,13.18,143.05,142.98,15.7233]
[1724210876527,20.0,143.07,143.0,6.5928]
[1724210876528,13.18,143.06,143.0,6.5928]
[1724210878215,13.18,143.04,143.0,6.5928]
[1724210882343,59.99478486,143.08,143.0,6.5928]
[1724210882344,13.18,143.05,143.0,6.5928]
[1724210887652,7.27478486,143.08,143.0,6.5928]
[1724210887836,7.27478486,143.08,143.01,29.8465]
[1724210888038,13.18,143.1,143.03,6.3112]
[1724210888754,20.0,143.11,143.03,6.3112]
[1724210889139,13.18,143.09,143.03,6.3112]
[1724210889525,13.18,143.1,143.04,16.1774]
[1724210890530,13.18,143.12,143.04,16.1774]
[1724210893835,13.18,143.12,143.06,6.6438]
[1724210900243,13.18,143.12,143.07,15.4947]
[1724210901136,13.18,143.14,143.07,15.4947]
[1724210901638,13.18,143.12,143.07,15.4947]
[1724210904835,13.18,143.1,143.07,15.4947]
[1724210905034,73.75,143.15,143.07,15.4947]
[1724210905035,13.18,143.08,143.07,15.4947]
[1724210907959,13.18,143.1,143.07,15.4947]
[1724210911449,13.18,143.08,143.03,15.3025]
[1724210911667,13.18,143.04,143.03,15.3025]
[1724210912270,13.18,143.04,143.02,6.2033]
[1724210913981,13.18,143.04,143.0,15.3025]
[1724210917354,13.18,143.02,143.0,15.3025]
[1724210918581,13.18,143.04,143.0,15.3025]
[1724210921980,33.18,143.04,143.0,15.3025]
[1724210922359,13.18,143.02,142.96,16.4955826]
[1724210923885,13.18,143.04,142.96,16.4955826]
[1724210927878,13.18,143.04,142.97,45.0]
[1724210928271,13.18,143.06,142.98,1.39850843]
[1724210929166,13.18,143.06,142.97,58.18]
[1724210929581,13.18,143.06,142.98,1.39850828]
[1724210930162,13.18,143.06,142.99,6.4479]
[1724210933102,13.18,143.06,143.0,15.4902]
[1724210940420,13.18,143.04,143.0,15.4902]
[1724210941988,93.75,143.08,143.0,15.4902]
[1724210942187,13.18,143.04,143.0,15.4902]
[1724210947595,33.18,143.04,143.0,15.4902]
[1724210949614,13.18,143.04,143.0,15.4902]
[1724210951102,13.18,143.05,143.0,15.4902]
[1724210955094,27.26963634,143.07,143.0,15.4902]
[1724210955290,13.18,143.06,143.0,15.4902]
[1724210968317,13.18,143.04,143.0,15.4902]
[1724210968907,13.18,143.02,143.0,15.4902]
[1724210978126,13.18,143.04,143.0,15.4902]
[1724210988142,13.18,143.02,142.99,6.4479]